bitfinex/quotes_SOLUSD_20250829
["timestamp","ask_amount","ask_price","bid_price","bid_amount"]
[1756481867741,0.06,209.67,209.66,136.81723949]
[1756481867942,0.06,209.67,209.66,137.51723949]
[1756481868365,0.06,209.67,209.66,125.50962701]
[1756481868551,0.06,209.67,209.66,142.2868665]
[1756481869060,0.06,209.67,209.66,124.80962701]
[1756481870354,0.06,209.67,209.66,120.04]
[1756481870558,0.06,209.67,209.66,124.80962701]
[1756481871666,0.06,209.67,209.66,125.50962701]
[1756481872064,0.06,209.67,209.66,124.80962701]
[1756481872270,0.06,209.67,209.66,125.50962701]
[1756481872453,0.06,209.67,209.66,142.2868665]
[1756481872652,0.06,209.72,209.7,80.28]
[1756481872858,0.06,209.72,209.71,39.48]
[1756481873266,0.06,209.72,209.71,119.76]
[1756481874547,0.06,209.72,209.71,22.2457293]
[1756481874776,0.06,209.72,209.71,258.20533879]
[1756481874949,0.06,209.72,209.71,274.5057293]
[1756481875344,0.06,209.72,209.71,212.78]
[1756481875552,0.06,209.72,209.71,252.26]
[1756481875772,17.55723949,209.72,209.71,212.78]
[1756481875958,0.78,209.72,209.71,252.26]
[1756481876147,0.06,209.72,209.71,252.26]
[1756481877469,0.06,209.72,209.71,269.73723949]
[1756481877656,0.06,209.72,209.71,266.69775558]
[1756481877862,0.06,209.72,209.71,288.24348488]
[1756481878071,0.06,209.74,209.73,80.16]
[1756481878276,0.06,209.74,209.73,269.51620456]
[1756481878454,0.06,209.74,209.73,274.50743615]
[1756481878672,0.06,209.74,209.73,84.92803509]
[1756481878849,0.06,209.74,209.73,120.0968035]
[1756481879179,0.06,209.74,209.73,80.16]
[1756481879477,0.06,209.74,209.73,142.34207808]
[1756481879646,0.06,209.74,209.73,102.40527458]
[1756481880145,0.06,209.74,209.73,141.86527458]
[1756481880352,0.06,209.74,209.73,142.00743615]
[1756481880994,0.06,209.74,209.63,23.85136741]
[1756481880995,13.59559401,209.69,209.51,8.65587506]
[1756481881177,16.77723949,209.6,209.53,16.80723949]
[1756481881492,16.77723949,209.56,209.53,0.03]
[1756481881670,16.77723949,209.55,209.54,39.46]
[1756481881987,16.77723949,209.56,209.54,39.46]
[1756481882354,16.77723949,209.55,209.54,39.46]
[1756481882569,17.49723949,209.55,209.53,0.03]
[1756481882768,17.49723949,209.54,209.53,16.73]
[1756481883176,16.77723949,209.54,209.53,16.73]
[1756481883379,16.77723949,209.55,209.53,16.73]
[1756481883993,16.77723949,209.54,209.53,16.73]
[1756481884776,0.72,209.56,209.53,16.73]
[1756481884983,0.14216157,209.49,209.32,0.1]
[1756481885204,16.77723949,209.33,209.32,0.1]
[1756481885383,0.47744091,209.39,209.33,2.49259538]
[1756481885589,16.77723949,209.34,209.33,2.49259538]
[1756481885792,16.77723949,209.34,209.32,0.1]
[1756481885793,17.49723949,209.34,209.32,0.1]
[1756481885992,16.77723949,209.33,209.32,0.1]
[1756481887209,17.49723949,209.33,209.32,0.1]
[1756481887387,27.30783359,209.33,209.32,0.1]
[1756481888086,26.11039268,209.33,209.32,0.1]
[1756481889484,0.47744091,209.38,209.32,0.1]
[1756481889781,26.0,209.39,209.32,0.1]
[1756481889782,26.11039268,209.36,209.32,40.56]
[1756481889986,26.11039268,209.33,209.32,0.1]
[1756481890217,26.11039268,209.33,209.32,40.56]
[1756481890510,26.11039268,209.33,209.32,0.1]
[1756481890885,26.11039268,209.34,209.32,0.1]
[1756481891382,26.11039268,209.33,209.32,0.1]
[1756481891816,26.83039268,209.33,209.32,0.1]
[1756481891982,0.72,209.33,209.32,0.1]
[1756481892181,26.83039268,209.33,209.32,0.1]
[1756481893588,0.47744091,209.35,209.32,0.1]
[1756481893791,26.11039268,209.33,209.32,0.1]
[1756481896794,40.42598669,209.33,209.32,0.1]
[1756481896995,40.56814826,209.33,209.32,0.1]
[1756481897190,26.0,209.3,209.29,0.03]
[1756481897389,0.14216157,209.29,209.27,0.03]
[1756481897591,41.04558917,209.28,209.27,0.03]
[1756481898228,27.44999516,209.28,209.27,0.03]
[1756481898524,41.04558917,209.28,209.27,0.03]
[1756481898920,45.82387663,209.28,209.27,0.03]
[1756481900212,26.0,209.25,209.17,0.69]
[1756481900419,26.0,209.25,209.13,26.0]
[1756481900420,26.11039268,209.18,209.14,40.24]
[1756481900603,26.11039268,209.15,209.1,0.69]
[1756481900794,0.47744091,209.17,209.1,0.69]
[1756481900997,26.11039268,209.12,209.08,40.24]
[1756481901297,26.11039268,209.11,209.09,0.69]
[1756481901497,8.18298096,209.21,209.11,26.0]
[1756481901498,0.47744091,209.21,209.11,26.0]
[1756481901701,26.11039268,209.23,209.12,27.16819433]
[1756481901901,0.72,209.27,209.14,26.11039268]
[1756481902103,0.47744091,209.26,209.17,26.0]
[1756481902410,0.47744091,209.29,209.2,26.11039268]
[1756481902610,29.18916457,209.43,209.2,26.11039268]
[1756481902611,26.11039268,209.3,209.23,26.11039268]
[1756481902814,0.47744091,209.35,209.24,41.43]
[1756481903029,0.47744091,209.35,209.25,0.69]
[1756481903203,26.11039268,209.33,209.26,26.11039268]
[1756481903523,26.58783359,209.32,209.26,26.11039268]
[1756481903912,26.58783359,209.32,209.25,0.69]
[1756481904218,26.11039268,209.29,209.25,0.69]
[1756481904434,26.11039268,209.31,209.25,5.46896773]
[1756481904643,26.11039268,209.35,209.28,26.11039268]
[1756481904805,26.11039268,209.35,209.29,26.11039268]
[1756481905009,26.11039268,209.34,209.28,26.80039268]
[1756481905405,26.11039268,209.33,209.28,0.69]
[1756481905933,26.11039268,209.33,209.27,26.11039268]
[1756481906112,26.11039268,209.35,209.3,4.77783086]
[1756481906316,26.11039268,209.34,209.3,45.41783086]
[1756481906528,0.47744091,209.36,209.3,45.41783086]
[1756481906702,26.11039268,209.34,209.3,45.41783086]
[1756481906900,0.14216157,209.25,209.14,0.69]
[1756481907127,39.73775558,209.23,209.13,31.08]
[1756481907317,26.11039268,209.18,209.13,31.08]
[1756481907521,26.11039268,209.18,209.14,0.69]
[1756481907723,26.11039268,209.15,209.09,0.69]
[1756481907927,0.72,209.2,209.09,0.69]
[1756481907928,26.11039268,209.14,209.09,0.69]
[1756481908235,0.72,209.18,209.08,67.13039268]
[1756481908236,26.11039268,209.12,209.08,45.80271112]
[1756481908411,26.11039268,209.13,209.09,0.69]
[1756481909022,26.11039268,209.14,209.08,45.80282064]
[1756481909220,26.11039268,209.14,209.1,0.69]
[1756481909534,26.11039268,209.11,209.1,0.69]
[1756481909723,26.11039268,209.11,209.08,45.80282064]
[1756481909724,26.11039268,209.11,209.08,4.78282064]
[1756481909927,26.11039268,209.09,209.02,0.69]
[1756481910112,26.11039268,209.03,209.02,72.53419106]
[1756481910305,26.11039268,209.03,209.02,46.53419106]
[1756481910513,26.11039268,209.03,209.02,72.53419106]
[1756481910817,26.11039268,209.03,209.02,5.47419106]
[1756481911028,26.11039268,209.03,209.0,4.78447645]
[1756481911326,26.11039268,209.01,209.0,41.1]
[1756481912438,26.11039268,209.02,209.0,46.52468899]
[1756481912631,26.11039268,209.02,209.01,0.66]
[1756481913134,26.11039268,209.02,209.0,41.08]
[1756481913335,26.11039268,209.01,208.97,27.01082093]
[1756481913636,26.11039268,208.98,208.97,1.67082093]
[1756481913835,23.29208874,209.18,208.97,1.67082093]
[1756481913836,0.47744091,209.13,209.01,13.73775558]
[1756481914023,26.11039268,209.08,209.05,26.0]
[1756481914330,26.11039268,209.11,209.07,4.783087]
[1756481914537,1.17744091,209.18,209.08,41.92]
[1756481914747,26.11039268,209.13,209.08,41.92]
[1756481915033,26.11039268,209.12,209.08,41.92]
[1756481915205,26.11039268,209.11,209.08,41.92]
[1756481915407,26.11039268,209.15,209.09,26.11039268]
[1756481915730,52.11039268,209.17,209.11,26.11039268]
[1756481915936,26.58783359,209.16,209.1,26.11039268]
[1756481916134,26.11039268,209.15,209.08,41.26]
[1756481916432,0.47744091,209.14,209.09,26.11039268]
[1756481916640,0.47744091,209.14,209.08,46.0428238]
[1756481916810,0.47744091,209.14,209.1,26.11039268]
[1756481917130,26.11039268,209.12,209.06,26.11039268]
[1756481917331,26.58783359,209.11,209.05,41.16]
[1756481917710,0.47744091,209.11,209.05,67.27039268]
[1756481917913,40.32558917,209.13,209.07,26.11039268]
[1756481918326,0.47744091,209.13,209.09,26.11039268]
[1756481918531,0.47744091,209.16,209.1,67.91039268]
[1756481918730,26.58783359,209.16,209.1,67.91039268]
[1756481919032,26.58783359,209.16,209.1,41.14]
[1756481919213,26.11039268,209.15,209.1,41.14]
[1756481919420,0.47744091,209.16,209.1,67.91039268]
[1756481920144,26.58783359,209.16,209.1,67.91039268]
[1756481920323,0.47744091,209.16,209.11,30.89256474]
[1756481920632,26.11039268,209.22,209.15,26.11039268]
[1756481920832,0.47744091,209.28,209.21,26.11039268]
[1756481921021,0.47744091,209.28,209.22,26.11039268]
[1756481921219,52.11039268,209.29,209.2,41.76]
[1756481921523,26.11039268,209.26,209.15,0.14216157]
[1756481921720,26.11039268,209.24,209.17,26.77039268]
[1756481921928,26.11039268,209.24,209.18,26.11039268]
[1756481922131,26.11039268,209.26,209.2,26.11039268]
[1756481922330,0.47744091,209.26,209.21,41.08]
[1756481922517,26.47744091,209.26,209.21,41.08]
[1756481922715,0.47744091,209.26,209.21,41.08]
[1756481922917,0.47744091,209.28,209.23,26.11039268]
[1756481923112,3.62960152,209.28,209.23,26.77039268]
[1756481923540,29.7399942,209.28,209.23,41.7]
[1756481923749,26.58783359,209.28,209.23,0.66]
[1756481924037,3.16003029,209.27,209.23,67.81039268]
[1756481924212,3.6374712,209.28,209.23,41.7]
[1756481924410,3.6374712,209.28,209.23,46.47929932]
[1756481924635,29.74786388,209.28,209.23,46.47929932]
[1756481924830,3.16003029,209.27,209.23,41.7]
[1756481925216,3.16003029,209.27,209.24,26.77039268]
[1756481925417,26.58783359,209.3,209.24,0.66]
[1756481925616,29.27042297,209.29,209.24,0.66]
[1756481925815,3.16003029,209.28,209.24,0.66]
[1756481926016,29.74786388,209.28,209.24,0.66]
[1756481926226,3.16003029,209.27,209.24,0.66]
[1756481926437,26.11039268,209.29,209.24,0.66]
[1756481926645,26.11039268,209.26,209.2,0.66]
[1756481926818,3.16003029,209.25,209.2,26.77039268]
[1756481927144,29.27042297,209.25,209.18,5.44047701]
[1756481927317,29.74786388,209.24,209.19,40.92]
[1756481927521,3.16003029,209.23,209.19,40.92]
[1756481927836,3.16003029,209.23,209.2,26.11039268]
[1756481928033,0.47744091,209.24,209.2,26.11039268]
[1756481928230,4.46295877,209.24,209.2,26.11039268]
[1756481928643,4.46295877,209.24,209.18,5.44053497]
[1756481928644,4.46295877,209.24,209.18,26.77039268]
[1756481928814,7.62298906,209.24,209.2,40.9]
[1756481929021,7.62298906,209.24,209.2,67.01039268]
[1756481929216,3.98551786,209.22,209.2,40.9]
[1756481929416,30.57335145,209.22,209.13,0.66]
[1756481929624,3.98551786,209.19,209.14,0.66]
[1756481929934,3.98551786,209.19,209.15,26.11039268]
[1756481930318,7.14554815,209.19,209.16,26.11039268]
[1756481930638,7.14554815,209.19,209.17,26.11039268]
[1756481931022,3.98551786,209.19,209.17,26.11039268]
[1756481931225,3.98551786,209.18,209.17,26.11039268]
[1756481931544,3.98551786,209.19,209.17,26.77039268]
[1756481931723,3.98551786,209.2,209.18,26.77039268]
[1756481931922,7.14554815,209.2,209.18,67.59039268]
[1756481932118,3.98551786,209.2,209.18,40.82]
[1756481932328,3.16003029,209.19,209.17,40.82]
[1756481932616,3.16003029,209.18,209.16,40.78]
[1756481932824,7.15235557,209.17,209.16,66.89039268]
[1756481933018,3.16003029,209.17,209.16,66.89039268]
[1756481933244,3.99232528,209.18,209.16,67.55039268]
[1756481933544,7.15235557,209.18,209.16,67.55039268]
[1756481933745,3.99232528,209.18,209.17,26.77039268]
[1756481934037,3.99232528,209.18,209.17,41.42]
[1756481934038,3.99338388,209.18,209.17,41.42]
[1756481934248,3.16003029,209.18,209.17,41.42]
[1756481934427,3.16003029,209.18,209.15,26.11039268]
[1756481934634,5.31402381,209.2,209.15,26.11039268]
[1756481934635,7.15481833,209.17,209.16,40.74]
[1756481934838,3.99478804,209.17,209.16,40.74]
[1756481935039,7.15481833,209.17,209.16,41.4]
[1756481935235,3.16003029,209.17,209.16,41.4]
[1756481935444,3.99666782,209.17,209.16,40.74]
[1756481935658,7.15669811,209.17,209.16,40.74]
[1756481935828,3.99666782,209.17,209.16,40.74]
[1756481936234,7.15669811,209.17,209.16,121.34]
[1756481936471,3.99666782,209.17,209.16,121.34]
[1756481936936,7.15669811,209.17,209.16,121.34]
[1756481937133,3.99666782,209.17,209.16,121.34]
[1756481937350,7.15669811,209.18,209.16,80.6]
[1756481937659,3.99666782,209.18,209.16,40.66]
[1756481938357,3.99666782,209.19,209.16,121.26]
[1756481938535,13.59559401,209.1,209.03,0.66]
[1756481938731,16.83238465,209.07,209.0,42.71238465]
[1756481938944,3.16003029,209.06,209.01,40.72]
[1756481939359,3.16003029,209.06,209.02,0.66]
[1756481939650,3.16003029,209.06,209.03,0.66]
[1756481939857,16.83238465,209.07,209.03,0.66]
[1756481940034,19.99241494,209.06,209.01,40.72]
[1756481940229,3.16003029,209.05,209.02,0.66]
[1756481940445,7.63835614,209.09,209.04,16.83238465]
[1756481940737,16.83238465,209.05,208.99,0.7]
[1756481940934,3.16003029,209.04,209.0,18.2]
[1756481941253,3.16003029,209.04,209.01,17.53238465]
[1756481941462,3.16003029,209.06,209.01,26.86069423]
[1756481941763,3.16003029,209.06,209.01,26.16069423]
[1756481941968,3.16003029,209.06,209.02,0.7]
[1756481941969,29.32072452,209.06,209.02,0.7]
[1756481942133,3.16003029,209.05,209.01,26.16069423]
[1756481942334,4.00088494,209.13,209.04,26.16069423]
[1756481942571,4.00088494,209.13,209.03,0.7]
[1756481942572,30.16157917,209.13,209.07,26.16069423]
[1756481942767,26.16069423,209.11,209.07,40.76]
[1756481943076,14.07303492,209.12,209.07,66.92069423]
[1756481943280,40.23372915,209.12,209.07,40.76]
[1756481943458,40.94372915,209.12,209.07,40.76]
[1756481944077,45.72569511,209.12,209.06,66.90069423]
[1756481944579,26.16069423,209.1,209.06,40.74]
[1756481944785,39.75628824,209.08,209.01,0.7]
[1756481944970,39.75628824,209.08,209.02,66.86069423]
[1756481945145,26.16069423,209.06,209.01,40.7]
[1756481945580,27.34813514,209.07,209.04,0.03]
[1756481945779,1.18744091,209.07,209.04,0.03]
[1756481945953,26.87069423,209.06,209.04,0.03]
[1756481946784,26.87069423,209.05,209.04,0.03]
[1756481947073,26.0,209.03,208.92,2.49679627]
[1756481947255,26.0,209.03,208.85,0.7]
[1756481947256,13.59559401,208.97,208.85,0.7]
[1756481947444,26.16069423,208.91,208.85,0.7]
[1756481947649,0.61960248,208.96,208.85,26.86069423]
[1756481947650,26.16069423,208.92,208.85,26.86069423]
[1756481947851,26.16069423,208.92,208.88,0.8]
[1756481948063,26.16069423,208.93,208.89,0.7]
[1756481948243,13.59559401,208.95,208.89,0.7]
[1756481948443,26.16069423,208.92,208.89,0.7]
[1756481948659,26.16069423,208.92,208.88,0.1]
[1756481948857,26.16069423,208.92,208.88,0.8]
[1756481949369,13.59559401,208.93,208.89,0.7]
[1756481949667,26.16069423,208.9,208.88,0.1]
[1756481949876,13.59559401,208.93,208.89,0.7]
[1756481950291,13.59559401,208.95,208.9,0.7]
[1756481950455,0.47744091,208.96,208.91,0.7]
[1756481950651,0.47744091,208.98,208.92,0.7]
[1756481951070,26.16069423,208.93,208.89,0.7]
[1756481951271,13.59559401,208.97,208.9,0.7]
[1756481951478,26.16069423,208.92,208.9,0.7]
[1756481951662,26.16069423,208.92,208.88,41.76]
[1756481951867,0.47744091,208.96,208.88,41.76]
[1756481951868,26.16069423,208.91,208.89,0.7]
[1756481952071,26.16069423,208.9,208.89,0.7]
[1756481952260,26.16069423,208.9,208.88,0.1]
[1756481953182,13.59559401,208.93,208.88,0.1]
[1756481953183,26.16069423,208.89,208.88,0.1]
[1756481953684,13.59559401,208.86,208.77,0.7]
[1756481953862,26.16069423,208.81,208.77,0.7]
[1756481954056,0.47744091,208.85,208.76,26.16069423]
[1756481954384,13.59559401,208.87,208.79,26.96069423]
[1756481954587,13.59559401,208.87,208.8,26.16069423]
[1756481954588,26.16069423,208.86,208.8,26.16069423]
[1756481954892,26.16069423,208.84,208.79,0.8]
[1756481955182,26.16069423,208.83,208.8,0.7]
[1756481955395,26.16069423,208.82,208.79,0.1]
[1756481955989,26.16069423,208.82,208.79,0.8]
[1756481956292,39.75628824,208.8,208.79,0.1]
[1756481956465,39.89844981,208.8,208.79,0.1]
[1756481957903,44.68772184,208.8,208.79,0.1]
[1756481958102,44.99772184,208.8,208.79,0.1]
[1756481958499,26.0,208.77,208.68,0.7]
[1756481958686,13.73775558,208.79,208.68,0.7]
[1756481958687,26.16069423,208.72,208.68,0.7]
[1756481959009,26.16069423,208.72,208.69,0.7]
[1756481959405,14.07303492,208.76,208.7,0.7]
[1756481959600,26.16069423,208.73,208.7,0.7]
[1756481959785,26.16069423,208.74,208.7,0.7]
[1756481959987,26.16069423,208.72,208.66,26.16069423]
[1756481960192,4.79074252,208.74,208.65,40.82]
[1756481960193,26.16069423,208.71,208.65,66.98069423]
[1756481960800,0.47744091,208.77,208.68,26.16069423]
[1756481961024,26.16069423,208.75,208.69,26.16069423]
[1756481961195,0.47744091,208.79,208.7,0.7]
[1756481961399,26.16069423,208.76,208.7,26.86069423]
[1756481961602,26.16069423,208.75,208.7,0.7]
[1756481961906,26.16069423,208.75,208.71,0.7]
[1756481962407,0.47744091,208.79,208.73,26.16069423]
[1756481962408,26.16069423,208.79,208.73,26.16069423]
[1756481962593,31.42748693,208.8,208.74,26.86069423]
[1756481962798,0.47744091,208.81,208.75,26.86069423]
[1756481962983,11.97015391,208.86,208.76,0.7]
[1756481962984,26.16069423,208.83,208.76,0.7]
[1756481963391,26.16069423,208.82,208.76,26.86069423]
[1756481963797,26.16069423,208.81,208.76,0.7]
[1756481964304,4.78927203,208.8,208.76,0.7]
[1756481964510,26.16069423,208.77,208.72,0.7]
[1756481964708,26.16069423,208.76,208.72,0.7]
[1756481964893,26.16069423,208.76,208.73,0.7]
[1756481965720,0.47744091,208.79,208.7,26.19069423]
[1756481965721,26.16069423,208.78,208.72,26.16069423]
[1756481965929,17.23828757,208.82,208.74,26.16069423]
[1756481966093,26.16069423,208.79,208.73,26.86069423]
[1756481966591,26.16069423,208.78,208.73,0.7]
[1756481966792,26.16069423,208.76,208.73,0.7]
[1756481966989,40.84216157,208.86,208.7,0.03]
[1756481966990,4.78629205,208.93,208.78,26.0]
[1756481967213,4.78629205,208.93,208.82,26.16069423]
[1756481967214,26.16069423,208.88,208.82,26.16069423]
[1756481967527,26.16069423,208.87,208.81,26.86069423]
[1756481967689,26.16069423,208.87,208.81,67.68069423]
[1756481968092,4.78789619,208.86,208.81,0.7]
[1756481968329,30.9484688,208.87,208.82,0.7]
[1756481968639,30.9484688,208.87,208.79,67.48]
[1756481968927,30.9484688,208.87,208.8,26.16069423]
[1756481969226,26.16069423,208.84,208.79,41.48]
[1756481969394,26.16069423,208.83,208.76,26.86069423]
[1756481969596,26.16069423,208.82,208.76,67.62069423]
[1756481969799,26.16069423,208.82,208.76,26.86069423]
[1756481969993,30.9496445,208.82,208.76,41.46]
[1756481970224,30.9496445,208.82,208.76,67.62069423]
[1756481970611,26.16069423,208.81,208.76,41.44]
[1756481970791,26.16069423,208.79,208.72,0.72]
[1756481970995,0.47744091,208.8,208.72,26.88069423]
[1756481970996,26.16069423,208.78,208.72,26.88069423]
[1756481971796,26.16069423,208.8,208.73,26.88069423]
[1756481972309,30.94996626,208.8,208.74,26.16069423]
[1756481972720,26.16069423,208.79,208.73,0.72]
[1756481972914,26.16069423,208.78,208.73,0.72]
[1756481973114,26.16069423,208.78,208.74,0.72]
[1756481974402,4.78925415,208.81,208.74,0.72]
[1756481974821,26.16069423,208.8,208.74,0.72]
[1756481975125,26.16069423,208.79,208.74,0.72]
[1756481975499,0.47744091,208.84,208.75,26.16069423]
[1756481975711,31.42604303,208.86,208.76,4.79018969]
[1756481975920,26.16069423,208.84,208.77,0.72]
[1756481976120,26.16069423,208.84,208.78,26.16069423]
[1756481976418,26.16069423,208.85,208.79,26.16069423]
[1756481976739,26.16069423,208.83,208.77,26.88069423]
[1756481977237,0.47744091,208.84,208.82,26.16069423]
[1756481977402,26.16069423,208.94,208.83,41.7588584]
[1756481977725,26.16069423,208.94,208.87,26.16069423]
[1756481977927,0.66,208.95,208.86,4.78788071]
[1756481977928,26.82069423,208.95,208.86,5.50788071]
[1756481978225,26.16069423,208.93,208.87,41.28]
[1756481978425,26.16069423,208.94,208.87,67.44069423]
[1756481978716,3.16176293,208.93,208.88,26.16069423]
[1756481978921,26.16069423,208.94,208.87,67.44069423]
[1756481979128,3.82176293,208.93,208.8,0.72]
[1756481979301,26.16069423,208.9,208.84,26.16069423]
[1756481979630,26.16069423,208.88,208.83,0.72]
[1756481979799,26.16069423,208.89,208.83,26.88069423]
[1756481980002,0.66,208.92,208.84,26.16069423]
[1756481980003,26.16069423,208.9,208.84,26.16069423]
[1756481980207,3.16447939,208.89,208.82,4.78863449]
[1756481980414,3.16447939,208.89,208.84,26.16069423]
[1756481980597,3.82447939,208.9,208.82,5.50863449]
[1756481980799,3.82447939,208.9,208.84,26.16069423]
[1756481981399,3.82447939,208.9,208.82,5.50863449]
[1756481981400,29.98517362,208.9,208.82,5.50863449]
[1756481981596,3.16447939,208.89,208.83,26.16069423]
[1756481981796,3.16447939,208.89,208.83,67.32069423]
[1756481982010,26.16069423,208.88,208.83,41.16]
[1756481982233,3.16447939,208.87,208.83,41.16]
[1756481982440,3.16447939,208.87,208.83,26.16069423]
[1756481982637,3.16447939,208.88,208.83,67.32069423]
[1756481983359,26.16069423,208.86,208.78,0.72]
[1756481983641,29.98517362,208.85,208.79,41.1]
[1756481983874,3.16447939,208.84,208.79,41.12]
[1756481984032,0.66,208.83,208.79,41.12]
[1756481984218,3.82447939,208.83,208.79,41.12]
[1756481984620,3.82447939,208.83,208.77,67.26069423]
[1756481984827,26.16069423,208.82,208.77,41.1]
[1756481985127,3.16447939,208.81,208.77,41.1]
[1756481986236,3.82447939,208.81,208.77,41.04]
[1756481986432,3.16447939,208.81,208.77,41.04]
[1756481987453,26.16069423,208.78,208.73,0.03]
[1756481987671,3.16447939,208.77,208.73,41.07]
[1756481987881,3.16447939,208.77,208.73,41.79]
[1756481988166,3.16447939,208.77,208.73,0.03]
[1756481988167,26.16069423,208.77,208.73,0.03]
[1756481988355,3.16447939,208.76,208.73,41.03]
[1756481988760,3.16447939,208.76,208.73,41.75]
[1756481988971,26.16069423,208.79,208.73,40.99]
[1756481989160,3.16447939,208.78,208.73,71.94147487]
[1756481989359,3.16447939,208.78,208.75,26.16069423]
[1756481989666,3.97488134,208.79,208.75,26.16069423]
[1756481989841,3.97488134,208.79,208.76,26.88069423]
[1756481990045,3.97488134,208.79,208.77,40.94]
[1756481990868,3.16447939,208.81,208.77,40.94]
[1756481990869,7.13936073,208.81,208.77,40.94]
[1756481991388,7.13936073,208.8,208.78,0.72]
[1756481991571,3.97488134,208.8,208.77,62.62517831]
[1756481991770,3.97488134,208.8,208.77,41.66]
[1756481991953,7.13936073,208.8,208.77,41.66]
[1756481992151,3.97488134,208.8,208.77,41.66]
[1756481992380,7.13936073,208.8,208.77,40.94]
[1756481992550,3.97488134,208.8,208.77,40.94]
[1756481992873,7.13936073,208.8,208.78,0.72]
[1756481993073,3.97488134,208.8,208.77,57.83537272]
[1756481993364,3.97488134,208.8,208.77,63.34526598]
[1756481993570,7.13936073,208.8,208.77,45.72989326]
[1756481993753,3.97488134,208.8,208.77,40.94]
[1756481993955,4.63488134,208.8,208.78,40.8]
[1756481994159,7.13936073,208.8,208.78,40.8]
[1756481994355,3.97488134,208.8,208.78,40.8]
[1756481995158,7.13936073,208.81,208.78,40.8]
[1756481995360,7.13936073,208.8,208.78,45.58967752]
[1756481995577,3.97488134,208.8,208.78,45.58967752]
[1756481996174,7.13936073,208.8,208.78,45.58967752]
[1756481996476,0.66,208.85,208.79,17.61537272]
[1756481996477,3.97488134,208.82,208.79,17.61537272]
[1756481996784,7.18025407,208.84,208.81,16.89537272]
[1756481996964,3.97488134,208.85,208.83,16.89537272]
[1756481997163,3.97488134,208.86,208.84,57.63537272]
[1756481997352,7.18039349,208.86,208.84,40.74]
[1756481997551,3.20551215,208.85,208.84,28.59474943]
[1756481997794,4.00686269,208.87,208.86,26.0]
[1756481998086,0.06,208.89,208.88,26.14216157]
[1756481998290,0.06,208.89,208.88,43.03753429]
[1756481998659,0.06,208.89,208.88,83.97753429]
[1756481998860,4.00686269,209.01,208.88,83.97753429]
[1756481999089,20.90223541,209.01,208.88,67.08216157]
[1756481999382,4.78379963,209.04,208.94,26.17823404]
[1756481999383,26.17823404,209.0,208.94,26.17823404]
[1756481999679,26.17823404,209.01,208.95,40.9]
[1756481999976,0.66,208.98,208.95,40.9]
[1756482000185,0.66,209.03,208.97,26.17823404]
[1756482000390,26.17823404,209.0,208.91,4.78675027]
[1756482000566,26.89823404,209.0,208.93,26.17823404]
[1756482000768,0.72,209.0,208.94,26.17823404]
[1756482000977,4.72686269,209.04,208.95,40.9]
[1756482001161,26.89823404,209.03,208.97,26.17823404]
[1756482001485,0.72,209.03,208.99,4.78491793]
[1756482001685,0.92,209.06,209.0,67.05823404]
[1756482001858,26.89823404,209.05,209.0,40.88]
[1756482002060,26.37823404,209.06,209.0,40.88]
[1756482002255,26.37823404,209.06,208.93,4.78629205]
[1756482002256,26.17823404,209.01,208.93,4.78629205]
[1756482002495,0.06,208.99,208.93,68.54452609]
[1756482002680,0.72,208.98,208.93,37.58]
[1756482002873,0.72,208.97,208.94,40.92]
[1756482003375,0.06,208.99,208.94,67.09823404]
[1756482003568,0.72,208.98,208.94,67.09823404]
[1756482003876,0.72,208.98,208.94,71.88426436]
[1756482004463,0.06,208.99,208.97,26.17823404]
[1756482004657,0.06,208.99,208.98,26.17823404]
[1756482004986,0.06,208.99,208.98,40.88]
[1756482005168,0.78,208.99,208.98,40.88]
[1756482005371,0.78,208.99,208.97,40.9]
[1756482005372,0.06,208.99,208.97,40.9]
[1756482005571,0.06,208.99,208.97,45.68527361]
[1756482005775,0.06,208.99,208.97,40.9]
[1756482006167,0.06,208.99,208.97,71.86358447]
[1756482006363,0.06,208.99,208.98,26.17823404]